Cogmind - Beta 16 @@@ ROGUE MODE // 2026.01.22 @ 02:01:50 Player: applejuice Result: Destroyed by Y-64 Sentinel with Wave Gun Performance ------------- Evolutions (5) 2500 Regions Visited (14) 2800 Robots Destroyed (23) 115 Value Destroyed (592) 592 Prototype IDs (25) 500 Alien Tech Used (0) 0 Bonus (1000) 1000 TOTAL SCORE: 7507 Bonus ------- Entered Garrisons 200 Entered DSFs 500 Aligned with FarCom 300 Cogmind --------- Core Integrity 0/1000 Matter 300/300 Energy 98/100 System Corruption 12% Temperature Cool (9) Movement Core (50) Location -5/Garrison Parts ------- > --- POWER (2) -------- (None) > --- PROPULSION (6) --- (None) > --- UTILITY (7) ------ (None) > --- WEAPON (2) ------- (None) > --- INVENTORY (5) ---- Neutrino Core Wheel Weight Redist. System Transmission Jammer Peak State ------------ > --- POWER ------------ Micro Nuclear Core > --- PROPULSION ------- Flight Unit VTOL Module Improved Flight Unit Improved Flight Unit > --- UTILITY ---------- Small Storage Unit Advanced Visual Processing Unit Improved Signal Interpreter 0b10 Alert Chip Transmission Jammer Hacking Suite > --- WEAPON ----------- Greatsword > --- INVENTORY -------- Wheel Weight Redist. System Greatsword [Rating: 42] Favorites ----------- Power Light Ion Engine Engine Light Ion Engine Power Core Micro Nuclear Core Propulsion Improved Flight Unit Leg Aluminum Leg Flight Unit Improved Flight Unit Utility Small Storage Unit Device Sensor Array Storage Small Storage Unit Processor 0b10 Alert Chip Hackware Hacking Suite Weapon Small Laser Energy Gun Small Laser Ballistic Gun Assault Rifle Launcher Proton Missile Launcher Slashing Weapon Greatsword Build | -11 -10 -9 -9 -9 -8 -8 -8 -7 -6 -6 -6 -5 -5 -5 ------- Run | Yrd Mat Mat Min Exi Min Mat Sto Fac Fac Low Low Fac DSF Gar Slots Evolved 10 | . . 2 . . . 2 . 2 2 . . 2 . . Power 1 | . . . . . . . . 1 . . . . . . Propulsion 4 | . . 1 . . . . . 1 1 . . 1 . . Utility 5 | . . 1 . . . 2 . . 1 . . 1 . . Weapon . | . . . . . . . . . . . . . . . Parts Attached 46 | 7 7 16 . . . 7 1 2 . . 2 . 4 . Power 9 | 2 1 3 . . . 1 . 1 . . 1 . . . Engine 7 | 2 1 3 . . . . . 1 . . . . . . Core 2 | . . . . . . 1 . . . . 1 . . . Reactor . | . . . . . . . . . . . . . . . Propulsion 17 | 2 3 10 . . . . . . . . . . 2 . Treads . | . . . . . . . . . . . . . . . Leg 8 | 2 3 3 . . . . . . . . . . . . Wheel . | . . . . . . . . . . . . . . . Hover . | . . . . . . . . . . . . . . . Flight 9 | . . 7 . . . . . . . . . . 2 . Utility 10 | 1 1 1 . . . 5 1 1 . . . . . . Device 3 | . 1 . . . . 2 . . . . . . . . Storage 2 | 1 . . . . . . . 1 . . . . . . Processor 4 | . . 1 . . . 3 . . . . . . . . Hackware 1 | . . . . . . . 1 . . . . . . . Protection . | . . . . . . . . . . . . . . . Artifact . | . . . . . . . . . . . . . . . Weapon 10 | 2 2 2 . . . 1 . . . . 1 . 2 . Energy Gun 2 | 1 1 . . . . . . . . . . . . . Energy Cannon . | . . . . . . . . . . . . . . . Ballistic Gun 3 | 1 . 2 . . . . . . . . . . . . Ballistic Cannon . | . . . . . . . . . . . . . . . Launcher 2 | . . . . . . . . . . . . . 2 . Special Weapon . | . . . . . . . . . . . . . . . Impact Weapon . | . . . . . . . . . . . . . . . Slashing Weapon 3 | . 1 . . . . 1 . . . . 1 . . . Piercing Weapon . | . . . . . . . . . . . . . . . Special Melee Weapon . | . . . . . . . . . . . . . . . Unidentified Prototypes 2 | . . 2 . . . . . . . . . . . . Corrupted Parts 2 | . . . . . . . . . . . . . 2 . System Corruption 12 | . . . . . . . . . . . . . 12 . Parts Lost 22 | . 2 5 1 . 1 . 2 . . 4 . . 7 . Power 4 | . 1 1 . . . . 1 . . 1 . . . . Propulsion 9 | . 1 2 . . . . . . . 2 . . 4 . Utility 2 | . . . . . 1 . 1 . . . . . . . Weapon 7 | . . 2 1 . . . . . . 1 . . 3 . Highest Loss Streak 7 | . 2 4 1 . 1 . 2 . . 3 . . 7 . To Critical Strikes . | . . . . . . . . . . . . . . . Average Backups 4 | . 4 5 6 6 7 6 6 3 3 3 2 4 4 4 Power . | . 1 . 1 1 1 1 . . . . . 1 1 1 Propulsion 1 | . . 1 4 4 4 4 3 1 1 1 1 1 1 1 Utility 1 | . 1 1 1 1 2 1 1 1 1 1 1 1 1 2 Weapon 1 | . 2 2 . . . . 1 1 1 1 . 1 . . Tool/Special . | . . . . . . . . . . . . . . . Unused Backups 4 | . . 1 . . . 1 . . . . . . . 2 Power . | . . . . . . . . . . . . . . . Propulsion 1 | . . . . . . . . . . . . . . 1 Utility 2 | . . . . . . 1 . . . . . . . 1 Weapon 1 | . . 1 . . . . . . . . . . . . Tool/Special . | . . . . . . . . . . . . . . . Average Slot Usage (%) 80 | . 95 81 97 88 82 87 87 81 80 73 56 47 16 . Engine 7 | . 13 8 11 11 11 9 6 . . . . . . . Core 1 | . . . . . . . 1 7 6 5 1 . . . Leg 10 | . 27 18 . . . . . . . . . . . . Flight 14 | . . 8 33 33 33 27 27 30 26 24 13 11 2 . Device 8 | . 11 11 11 11 5 7 1 . 6 6 6 5 1 . Storage 9 | . 14 11 11 11 11 9 7 3 6 6 6 5 2 . Processor 11 | . . 10 11 11 11 25 27 23 20 20 20 17 7 . Hackware 1 | . . . . . . . 7 7 6 6 6 5 1 . Energy Gun 4 | . 14 2 . . . . . . . . . . . . Ballistic Gun 5 | . 11 11 8 . . . . . . . . . . . Slashing Weapon 4 | . 2 . 11 11 11 9 9 7 6 3 1 . . . Peak Build Rating 42 | 6 10 16 15 14 14 38 36 41 42 42 40 27 27 1 Average Rating 18 | 4 7 10 14 13 13 31 34 37 42 36 32 27 8 1 On Entrance 20 | . 6 10 15 13 14 13 35 36 38 42 27 33 27 1 Avg Prop Armor Cover (%) . | . . . . . . . . . . . . . . . Naked Turns 64 | . . . . . . . . . . . . . 37 27 Heaviest Build 20 | 13 14 14 14 11 11 14 14 16 17 17 20 6 6 . Greatest Support 36 | 20 26 36 14 14 14 14 14 18 18 18 10 10 10 3 Greatest Overweight (x) 4 | 4 1 1 . . . . . . . . 1 . . . Average Overweight (x) . | . . . . . . . . . . . . . . . Largest Inventory Capacity 8 | 8 8 8 8 8 8 8 8 8 8 8 8 8 8 5 Average Capacity 7 | 7 8 8 8 8 8 8 7 7 8 8 8 8 6 5 Most Carried 8 | 2 8 8 6 7 7 8 8 5 4 4 4 5 6 4 Average Carried 5 | 1 4 5 6 6 7 7 7 4 4 4 3 5 4 4 Final Capacity 8 | 8 8 8 8 8 8 8 5 8 8 8 8 8 5 5 Final Carried 8 | 2 8 6 6 7 7 8 5 5 4 4 4 5 4 4 Class Distribution -------------------- 54% | Mutant 17% | Sprinter 15% | Ninja 9% | Scout Dominant Class ---------------- Mutant | -10/Materials Mutant | -9/Materials Sprinter | -9/Mines Sprinter | -9/Exiles Scout | -8/Mines Ninja | -8/Materials Scout | -8/Storage Scout | -7/Factory Ninja | -6/Factory Sprinter | -6/Lower Caves Mutant | -6/Lower Caves Mutant | -5/Factory Mutant | -5/DSF Mutant | -5/Garrison Resources | -11 -10 -9 -9 -9 -8 -8 -8 -7 -6 -6 -6 -5 -5 -5 ----------- Run | Yrd Mat Mat Min Exi Min Mat Sto Fac Fac Low Low Fac DSF Gar Matter Collected 956 | 33 176 361 . . . 55 89 . 174 15 30 . 23 . Remotely . | . . . . . . . . . . . . . . . Salvage Created 862 | . 349 330 . . . . . . . . 93 . 90 . Parts 48 | . 17 18 . . . . . . . . 4 . 9 . Haulers Intercepted 2 | . 1 1 . . . . . . . . . . . . Recyclers Shooed . | . . . . . . . . . . . . . . . Parts Field Recycled . | . . . . . . . . . . . . . . . Retrieved Matter . | . . . . . . . . . . . . . . . Parts Self-Destructed . | . . . . . . . . . . . . . . . Prevented . | . . . . . . . . . . . . . . . Parts Restored . | . . . . . . . . . . . . . . . Kills | -11 -10 -9 -9 -9 -8 -8 -8 -7 -6 -6 -6 -5 -5 -5 ------- Run | Yrd Mat Mat Min Exi Min Mat Sto Fac Fac Low Low Fac DSF Gar Combat Hostiles Destroyed 19 | . 8 8 . . . . . . . . . . 3 . Melee 2 | . 2 . . . . . . . . . . . . . Guns 14 | . 6 8 . . . . . . . . . . . . AOE 3 | . . . . . . . . . . . . . 3 . Classes Destroyed 7 | . 4 1 . . . . . . . . 1 . 1 . Worker 2 | . 1 1 . . . . . . . . . . . . Hauler 2 | . 1 1 . . . . . . . . . . . . Swarmer 5 | . 2 3 . . . . . . . . . . . . Cutter 3 | . . . . . . . . . . . . . 3 . Grunt 10 | . 6 4 . . . . . . . . . . . . Sentry 1 | . . 1 . . . . . . . . . . . . Samaritan 2 | . . . . . . . . . . . 2 . . . Best Kill Streak 3 | . 3 3 . . . . . . . . . . 3 . Combat Bots Only 3 | . 3 3 . . . . . . . . . . 3 . Max Kills in Single Turn 3 | . 1 1 . . . . . . . . 1 . 3 . Gunslinging . | . . . . . . . . . . . . . . . Exploded 3 | . . . . . . . . . . . . . 3 . Melee 1 | . 1 . . . . . . . . . . . . . Uniques/NPCs Destroyed . | . . . . . . . . . . . . . . . Combat | -11 -10 -9 -9 -9 -8 -8 -8 -7 -6 -6 -6 -5 -5 -5 -------- Run | Yrd Mat Mat Min Exi Min Mat Sto Fac Fac Low Low Fac DSF Gar Hostile Shots Fired 308 | . 76 76 4 . 3 6 28 . 3 57 . . 44 11 Missed 114 | . 17 22 2 . 2 3 14 . 2 38 . . 11 3 Hits 194 | . 59 54 2 . 1 3 14 . 1 19 . . 33 8 Melee 23 | . . . . . . . . . . . . . 23 . Projectile 171 | . 59 54 2 . 1 3 14 . 1 19 . . 10 8 AOE 5 | . . . . . . . . . . . . . 5 . Critical Strikes 10 | . . . . . . . . . . 1 . . 9 . Damage Taken 3222 | . 614 530 17 . 15 46 192 . 15 303 . . 1265 225 Core 1372 | . 118 65 8 . . . 46 . . 128 . . 782 225 Absorbed by Shields . | . . . . . . . . . . . . . . . Core Remaining (%) 84 | 100 52 . . . 81 . 91 100 . . 84 . . . Volleys Fired 81 | . 38 42 . . . . . . . . . . 1 . Largest 2 | . 2 2 . . . . . . . . . . 1 . Hottest 60 | . 60 60 . . . . . . . . . . 39 . Shots Fired 129 | . 76 52 . . . . . . . . . . 1 . Gun 128 | . 76 52 . . . . . . . . . . . . Cannon . | . . . . . . . . . . . . . . . Launcher 1 | . . . . . . . . . . . . . 1 . Special . | . . . . . . . . . . . . . . . Kinetic 83 | . 38 45 . . . . . . . . . . . . Thermal 45 | . 38 7 . . . . . . . . . . . . Explosive . | . . . . . . . . . . . . . . . Electromagnetic 1 | . . . . . . . . . . . . . 1 . Robot Hit Streak 7 | . 7 6 . . . . . . . . . . 7 . Robot Miss Streak 8 | . 3 8 . . . . . . . . . . . . Penetration Max . | . . . . . . . . . . . . . . . Secondary Targets 3 | . 3 . . . . . . . . . . . . . Max Gunslinging Chain 1 | . 1 . . . . . . . . . . . . . Shots Hit Robots 95 | . 53 35 . . . 1 . . . . 3 . 3 . Core Hits 40 | . 19 16 . . . . . . . . 1 . 4 . Critical Kills . | . . . . . . . . . . . . . . . Critical Parts Destroyed 1 | . . 1 . . . . . . . . . . . . Critical Strikes 1 | . . 1 . . . . . . . . . . . . Destroy 1 | . . 1 . . . . . . . . . . . . Melee Attacks 23 | . 11 . . . . 3 1 . . . 3 . 5 . Impact . | . . . . . . . . . . . . . . . Slashing 23 | . 11 . . . . 3 1 . . . 3 . 5 . Piercing . | . . . . . . . . . . . . . . . Sneak Attacks 3 | . . . . . . . . . . . 3 . . . Combat Hostiles . | . . . . . . . . . . . . . . . Follow-up Attacks . | . . . . . . . . . . . . . . . Damage Inflicted 1775 | 1 642 436 . . . 30 . . . . 334 . 308 24 Guns 982 | . 546 436 . . . . . . . . . . . . Cannons . | . . . . . . . . . . . . . . . Explosions 194 | . . . . . . . . . . . . . 194 . Melee 574 | . 96 . . . . 30 . . . . 334 . 114 . Ramming 25 | 1 . . . . . . . . . . . . . 24 Kinetic 717 | . 313 404 . . . . . . . . . . . . Thermal 380 | . 233 32 . . . . . . . . . . 115 . Explosive . | . . . . . . . . . . . . . . . Electromagnetic 79 | . . . . . . . . . . . . . 79 . Impact . | . . . . . . . . . . . . . . . Slashing 574 | . 96 . . . . 30 . . . . 334 . 114 . Piercing . | . . . . . . . . . . . . . . . Highest Corruption 12 | . . . . . . . . . . 1 1 . 12 12 Average Corruption 5 | . . . . . . . . . . 1 1 . 10 12 Corruption Purged . | . . . . . . . . . . . . . . . Corruption Blocked . | . . . . . . . . . . . . . . . Effects 1 | . . . . . . . . . . . . . 1 . Message Errors 1 | . . . . . . . . . . . . . 1 . Overload Shots . | . . . . . . . . . . . . . . . Overflow Damage 181 | . 4 . . . . . . . . . 163 . 14 . Projectiles . | . . . . . . . . . . . . . . . Explosions 9 | . . . . . . . . . . . . . 9 . Melee 172 | . 4 . . . . . . . . . 163 . 5 . Knockbacks . | . . . . . . . . . . . . . . . Impact . | . . . . . . . . . . . . . . . Kinetic . | . . . . . . . . . . . . . . . Secondary . | . . . . . . . . . . . . . . . Self-Inflicted Damage 89 | . . . . . . . . . . . . . 78 11 Shots 2 | . . . . . . . . . . . . . 2 . Rammed 4 | . . . . . . . . . . . . . . 4 Targets Rammed 6 | 1 . 1 . . . . . . . . . . . 4 Kicked 2 | 1 . 1 . . . . . . . . . . . . Crushed . | . . . . . . . . . . . . . . . Highest Temperature 163 | . 163 1 . . . . . . . 22 . . . . Average Temperature 88 | . 91 1 . . . . . . . 17 . . . . Received Heat Transfer 564 | . 246 129 . . 9 18 81 . . 36 . . . 45 Siege Activations . | . . . . . . . . . . . . . . . Martial Activations . | . . . . . . . . . . . . . . . Shielding Activations . | . . . . . . . . . . . . . . . Robots Disrupted . | . . . . . . . . . . . . . . . Combat Hostiles . | . . . . . . . . . . . . . . . Robots Corrupted . | . . . . . . . . . . . . . . . Combat Hostiles . | . . . . . . . . . . . . . . . Parts Fried 1 | . . . . . . . . . . . . . 1 . Impact Corruptions . | . . . . . . . . . . . . . . . Robots Melted . | . . . . . . . . . . . . . . . Combat Hostiles . | . . . . . . . . . . . . . . . Parts Melted 2 | . 2 . . . . . . . . . . . . . Heat Transferred 650 | . 525 75 . . . . . . . . . . 50 . Parts Sabotaged . | . . . . . . . . . . . . . . . Parts Stolen . | . . . . . . . . . . . . . . . Parts Stripped . | . . . . . . . . . . . . . . . Power Chain Reactions 1 | . . . . . . . . . . . . . 1 . Alert | -11 -10 -9 -9 -9 -8 -8 -8 -7 -6 -6 -6 -5 -5 -5 ------- Run | Yrd Mat Mat Min Exi Min Mat Sto Fac Fac Low Low Fac DSF Gar Maximum Alert Level . | . . . . . . . . . . . . . . . Low Security (%) 100 | 100 100 100 100 . 100 100 100 100 100 . . 100 100 100 Level 1 . | . . . . . . . . . . . . . . . Level 2 . | . . . . . . . . . . . . . . . Level 3 . | . . . . . . . . . . . . . . . Level 4 . | . . . . . . . . . . . . . . . Level 5 . | . . . . . . . . . . . . . . . High Security . | . . . . . . . . . . . . . . . Max Security . | . . . . . . . . . . . . . . . Peak Influence 178 | . 99 178 79 . . 12 28 12 8 . . 48 86 60 Initial 60 | . . 38 54 . . . . 12 . . . 48 33 60 Average 40 | . 31 106 49 . . . 3 3 . . . 48 53 60 Influence Increases 981 | . 273 292 45 . . 18 47 . 8 180 . . 118 . Destroy 0b10 Robot/C 380 | . 160 160 . . . . . . . . . . 60 . Destroy 0b10 Robot/NC 20 | . 10 10 . . . . . . . . . . . . Destroy Leader 84 | . 32 42 . . . . . . . . . . 10 . Successful Hack 54 | . 11 20 . . . 5 10 . 8 . . . . . Select Force Hacks 30 | . . 30 . . . . . . . . . . . . Disable Machine 27 | . 15 . . . . 12 . . . . . . . . Destroy Structure 8 | . . . . . . 1 1 . . . . . 6 . Lose Combat Pursuer 378 | . 45 30 45 . . . 36 . . 180 . . 42 . Influence Decreases 921 | . 182 243 106 79 . 18 19 28 . 80 31 29 85 21 Entered New Map 324 | . . 53 86 79 . . . 16 . 4 21 29 15 21 Time Decay 395 | . 162 140 10 . . 18 9 12 . 34 10 . . . Lost Part 200 | . 20 50 10 . . . 10 . . 40 . . 70 . Lost Ally 2 | . . . . . . . . . . 2 . . . . Squads Dispatched 8 | . . 3 . . . 1 . . 2 . . . 2 . Investigation 3 | . . 2 . . . . . . 1 . . . . . Extermination . | . . . . . . . . . . . . . . . Reinforcement 4 | . . 1 . . . . . . 1 . . . 2 . Assault . | . . . . . . . . . . . . . . . Garrison 1 | . . . . . . 1 . . . . . . . . Intercept . | . . . . . . . . . . . . . . . Searches Triggered . | . . . . . . . . . . . . . . . Construction Impeded . | . . . . . . . . . . . . . . . Haulers Reinforced . | . . . . . . . . . . . . . . . Active Scanning Responses . | . . . . . . . . . . . . . . . Cargo Convoy Interrupts . | . . . . . . . . . . . . . . . Stealth | -11 -10 -9 -9 -9 -8 -8 -8 -7 -6 -6 -6 -5 -5 -5 --------- Run | Yrd Mat Mat Min Exi Min Mat Sto Fac Fac Low Low Fac DSF Gar Distress Signals 3 | . 3 . . . . . . . . . . . . . Communications Jammed . | . . . . . . . . . . . . . . . Distress Signals . | . . . . . . . . . . . . . . . Times Spotted 88 | . 15 12 4 . 3 6 12 1 2 20 . . 10 3 Peak Tracking Total 10 | . 7 3 4 . 3 3 10 2 2 9 . . 5 3 Tactical Retreats 13 | . 2 2 1 . . . 2 . . 4 . . 2 . Traps | -11 -10 -9 -9 -9 -8 -8 -8 -7 -6 -6 -6 -5 -5 -5 ------- Run | Yrd Mat Mat Min Exi Min Mat Sto Fac Fac Low Low Fac DSF Gar Traps Triggered 3 | . . . . . . . . . 1 . . . 1 1 Indirectly . | . . . . . . . . . . . . . . . Trap Hack Attempts . | . . . . . . . . . . . . . . . Triggered . | . . . . . . . . . . . . . . . Disarmed . | . . . . . . . . . . . . . . . Reprogrammed . | . . . . . . . . . . . . . . . Reused . | . . . . . . . . . . . . . . . Traps Extracted . | . . . . . . . . . . . . . . . Installed . | . . . . . . . . . . . . . . . Triggered . | . . . . . . . . . . . . . . . Machines | -11 -10 -9 -9 -9 -8 -8 -8 -7 -6 -6 -6 -5 -5 -5 ---------- Run | Yrd Mat Mat Min Exi Min Mat Sto Fac Fac Low Low Fac DSF Gar Machines Disabled 2 | . 1 . . . . 1 . . . . . . . . Max in Single Turn 1 | . 1 . . . . 1 . . . . . . . . Garrison Access 2 | . . . . . . 1 . . 1 . . . . . Machines Repaired . | . . . . . . . . . . . . . . . Machines Dismantled . | . . . . . . . . . . . . . . . Machines Sabotaged . | . . . . . . . . . . . . . . . Overloaded Fab Kills . | . . . . . . . . . . . . . . . Hacking | -11 -10 -9 -9 -9 -8 -8 -8 -7 -6 -6 -6 -5 -5 -5 --------- Run | Yrd Mat Mat Min Exi Min Mat Sto Fac Fac Low Low Fac DSF Gar Machines Accessed 23 | . 3 4 . 1 . 3 6 1 4 . . 1 . . Terminals 16 | . 2 3 . . . 1 6 1 2 . . 1 . . Fabricators 1 | . . . . . . . . . 1 . . . . . Repair Stations . | . . . . . . . . . . . . . . . Recycling Units 3 | . 1 1 . . . 1 . . . . . . . . Scanalyzers . | . . . . . . . . . . . . . . . Garrison Access 2 | . . . . . . 1 . . 1 . . . . . Total Hacks 57 | . 5 17 . 1 . 7 15 2 7 . . 3 . . Successful 23 | . 3 6 . 1 . 4 3 . 5 . . 1 . . Failed 34 | . 2 11 . . . 3 12 2 2 . . 2 . . Catastrophic 7 | . . 3 . . . 1 3 . . . . . . . Database Lockouts . | . . . . . . . . . . . . . . . Manual 37 | . 3 17 . 1 . 3 7 2 4 . . . . . Terminals 43 | . 4 13 . . . 3 15 2 3 . . 3 . . Fabricators 3 | . . . . . . . . . 3 . . . . . Repair Stations . | . . . . . . . . . . . . . . . Recycling Units 8 | . 1 4 . . . 3 . . . . . . . . Scanalyzers . | . . . . . . . . . . . . . . . Garrison Access 2 | . . . . . . 1 . . 1 . . . . . Terminal Hacks 9 | . 1 3 . 1 . 1 1 . 1 . . 1 . . Record 1 | . . . . . . . . . 1 . . . . . Robot Analysis 1 | . 1 . . . . . . . . . . . . . Open Door 1 | . . . . . . . 1 . . . . . . . Open DSF 1 | . . . . . . . . . . . . 1 . . Terminal Index 2 | . . 1 . . . 1 . . . . . . . . Assault Status 1 | . . 1 . . . . . . . . . . . . Garrison Status 1 | . . 1 . . . . . . . . . . . . Proto ID Catalog 1 | . . . . 1 . . . . . . . . . . Fabricator Hacks 1 | . . . . . . . . . 1 . . . . . Network Status 1 | . . . . . . . . . 1 . . . . . Repair Station Hacks . | . . . . . . . . . . . . . . . Recycling Unit Hacks 2 | . 1 . . . . 1 . . . . . . . . Retrieve Components 2 | . 1 . . . . 1 . . . . . . . . Scanalyzer . | . . . . . . . . . . . . . . . Garrison Access Hacks 2 | . . . . . . 1 . . 1 . . . . . Seal Access 2 | . . . . . . 1 . . 1 . . . . . Unauthorized Hacks 8 | . 1 2 . . . 1 2 . 2 . . . . . Terminals 5 | . 1 . . . . 1 2 . 1 . . . . . Assimilate 4 | . 1 . . . . 1 1 . 1 . . . . . Detonate 1 | . . . . . . . 1 . . . . . . . Fabricators 1 | . . . . . . . . . 1 . . . . . Report 1 | . . . . . . . . . 1 . . . . . Repair Stations . | . . . . . . . . . . . . . . . Recycling Units 2 | . . 2 . . . . . . . . . . . . Monitor 1 | . . 1 . . . . . . . . . . . . Tunnel 1 | . . 1 . . . . . . . . . . . . Scanalyzers . | . . . . . . . . . . . . . . . Garrison Access . | . . . . . . . . . . . . . . . Data Cores Recovered . | . . . . . . . . . . . . . . . Used . | . . . . . . . . . . . . . . . Hacking Detections 18 | . 3 4 . . . 2 5 1 3 . . . . . Full Trace Events 3 | . . 1 . . . . 1 . 1 . . . . . Feedback Events . | . . . . . . . . . . . . . . . Feedback Blocked . | . . . . . . . . . . . . . . . Robot Schematics Acquired . | . . . . . . . . . . . . . . . Robots Built . | . . . . . . . . . . . . . . . Authchips . | . . . . . . . . . . . . . . . Time . | . . . . . . . . . . . . . . . Total Robot Build Rating . | . . . . . . . . . . . . . . . Part Schematics Acquired . | . . . . . . . . . . . . . . . Parts Built . | . . . . . . . . . . . . . . . Authchips . | . . . . . . . . . . . . . . . Time . | . . . . . . . . . . . . . . . Total Part Build Rating . | . . . . . . . . . . . . . . . Part Studies Acquired . | . . . . . . . . . . . . . . . Parts Repaired . | . . . . . . . . . . . . . . . Time . | . . . . . . . . . . . . . . . Parts Recycled . | . . . . . . . . . . . . . . . Recycled Matter . | . . . . . . . . . . . . . . . Retrieved Matter . | . . . . . . . . . . . . . . . Retrieved Components 5 | . 2 . . . . 3 . . . . . . . . Parts Scanalyzed . | . . . . . . . . . . . . . . . Part Schematics Acquired . | . . . . . . . . . . . . . . . Parts Damaged . | . . . . . . . . . . . . . . . Bothacking | -11 -10 -9 -9 -9 -8 -8 -8 -7 -6 -6 -6 -5 -5 -5 ------------ Run | Yrd Mat Mat Min Exi Min Mat Sto Fac Fac Low Low Fac DSF Gar Used RIF Installer . | . . . . . . . . . . . . . . . Robots Hacked . | . . . . . . . . . . . . . . . Non-combat . | . . . . . . . . . . . . . . . Combat . | . . . . . . . . . . . . . . . Robot Hacks Applied . | . . . . . . . . . . . . . . . Relay Couplers Released . | . . . . . . . . . . . . . . . Fabnet Peak Effective % . | . . . . . . . . . . . . . . . Robots Rewired . | . . . . . . . . . . . . . . . Allies Hacked . | . . . . . . . . . . . . . . . Hacks Repelled . | . . . . . . . . . . . . . . . Allies | -11 -10 -9 -9 -9 -8 -8 -8 -7 -6 -6 -6 -5 -5 -5 -------- Run | Yrd Mat Mat Min Exi Min Mat Sto Fac Fac Low Low Fac DSF Gar Total Allies 2 | . . . . . . 1 . . 1 . . . . . Largest Group 1 | . . . . . . 1 . . 1 1 . . . . Highest-Rated Group 10 | . . . . . . 10 . . 10 10 . . . . Highest-Rated Ally 10 | . . . . . . 10 . . 10 10 . . . . Total Orders . | . . . . . . . . . . . . . . . Ally Attacks . | . . . . . . . . . . . . . . . Total Damage . | . . . . . . . . . . . . . . . Kills . | . . . . . . . . . . . . . . . Allies Corrupted . | . . . . . . . . . . . . . . . Allies Melted . | . . . . . . . . . . . . . . . Intel | -11 -10 -9 -9 -9 -8 -8 -8 -7 -6 -6 -6 -5 -5 -5 ------- Run | Yrd Mat Mat Min Exi Min Mat Sto Fac Fac Low Low Fac DSF Gar Active Infowar (turns) 1417 | . 362 296 25 112 2 148 77 76 78 169 39 7 26 . Optics 620 | . . . . . . 148 77 76 78 169 39 7 26 . Sensors 816 | . 362 296 25 112 2 19 . . . . . . . . Jamming 353 | . . . . . . 115 3 1 78 156 . . . . Robot Analysis Total 1 | . 1 . . . . . . . . . . . . . Derelict Logs Recovered 1 | . . . . . . . . . . 1 . . . . Drone Launches . | . . . . . . . . . . . . . . . Drone Recoveries . | . . . . . . . . . . . . . . . Exploration | -11 -10 -9 -9 -9 -8 -8 -8 -7 -6 -6 -6 -5 -5 -5 ------------- Run | Yrd Mat Mat Min Exi Min Mat Sto Fac Fac Low Low Fac DSF Gar Turns Passed 1654 | 58 451 296 25 112 12 154 77 76 78 169 39 7 73 27 Spaces Moved 2657 | 30 230 218 76 345 37 351 218 237 166 540 43 18 102 46 Core 124 | 7 . . . . . . . . . . . . 71 46 Treads . | . . . . . . . . . . . . . . . Legs 332 | 23 230 79 . . . . . . . . . . . . Wheels . | . . . . . . . . . . . . . . . Hover . | . . . . . . . . . . . . . . . Flight 2201 | . . 139 76 345 37 351 218 237 166 540 43 18 31 . Fastest Speed 29 | 50 120 32 32 32 32 32 32 29 29 29 37 37 30 50 Average Speed 44 | 151 121 64 32 32 32 32 32 29 29 30 59 37 45 50 Slowest Speed 250 | 250 190 120 32 32 32 32 32 29 29 37 107 37 50 50 Overloaded Moves . | . . . . . . . . . . . . . . . Propulsion Burnouts . | . . . . . . . . . . . . . . . Robots Hopped 16 | . . . . . . 6 4 1 1 4 . . . . Potential Cave-ins . | . . . . . . . . . . . . . . . Cave-ins Triggered . | . . . . . . . . . . . . . . . Exploration Rate (%) 31 | 4 43 26 22 86 15 29 55 9 8 72 10 2 74 10 Regions Visited 14 Branch Regions 6 Pre-discovered Areas 1 | . . 1 . . . . . . . . . . . . Known Exits Taken 11 | . . 1 1 1 1 1 1 1 1 1 1 1 . . Unknown Exits Taken 2 | 1 1 . . . . . . . . . . . . . Scrap Searched 2 | . . . 1 . . . . . . . 1 . . . Spaces Dug 2 | . . . . . . 1 1 . . . . . . . Terrain Destroyed 5 | . . . . . . 1 1 . . . . . 3 . Melee 2 | . . . . . . 1 1 . . . . . . . Projectile . | . . . . . . . . . . . . . . . AOE 3 | . . . . . . . . . . . . . 3 . Terrain Rammed . | . . . . . . . . . . . . . . . Walls Destroyed . | . . . . . . . . . . . . . . . Machines Disabled . | . . . . . . . . . . . . . . . Actions | -11 -10 -9 -9 -9 -8 -8 -8 -7 -6 -6 -6 -5 -5 -5 --------- Run | Yrd Mat Mat Min Exi Min Mat Sto Fac Fac Low Low Fac DSF Gar Total 2927 | 39 304 321 75 345 36 379 218 243 194 540 50 18 115 50 Wait 87 | . 11 24 . . . 16 . . 29 5 . . 2 . Move 2612 | 29 229 217 75 344 36 338 209 234 163 532 42 17 101 46 Hop 15 | . . . . . . 6 4 1 1 3 . . . . Pick Up 18 | 2 5 5 . 1 . 2 1 2 . . . . . . Fast Attach 25 | 5 4 5 . . . 4 1 1 . . 1 . 4 . Attach 18 | 1 . 8 . . . 1 1 3 1 . 2 . 1 . Detach 11 | . . 4 . . . 2 . 1 . . 2 1 1 . Swap 14 | 1 3 7 . . . 3 . . . . . . . . Drop 17 | . 3 8 . . . 4 1 1 . . . . . . Fire 81 | . 38 42 . . . . . . . . . . 1 . Melee 23 | . 11 . . . . 3 1 . . . 3 . 5 . Ram 4 | . . . . . . . . . . . . . . 4 Kick 2 | 1 . 1 . . . . . . . . . . . . Crush . | . . . . . . . . . . . . . . . Escape Stasis . | . . . . . . . . . . . . . . . Rewire . | . . . . . . . . . . . . . . . Trap . | . . . . . . . . . . . . . . . Miscellaneous . | . . . . . . . . . . . . . . . Route ------- -11/Scrapyard -10/Materials -9/Materials -9/Mines (discovered 2 exits: *Mat / *Exi) -9/Exiles -8/Mines -8/Materials (discovered 2 exits: *Fac / *Sto) -8/Storage -7/Factory -6/Factory -6/Lower Caves -6/Lower Caves -5/Factory -5/DSF -5/Garrison History --------- Turn | Location | Event 28 | -11/Scrapyard | Discovered new exit (range 13) 59 | -11/Scrapyard | Entered Materials 302 | -10/Materials | Build established: Mutant 342 | -10/Materials | Discovered new exit (range 6) 510 | -10/Materials | Entered another Materials area 510 | -9/Materials | Evolved 2 slots: Propulsion x1, Utility x1 685 | -9/Materials | Lost 4 parts (2n2w) 802 | -9/Materials | Discovered new exit (range 16) 806 | -9/Materials | Identified exit to Mines 806 | -9/Materials | Entered Mines 810 | -9/Mines | Discovered new exit (range 8) 812 | -9/Mines | Identified exit to Materials 829 | -9/Mines | Deemed a non-threat by the Exiles lab entrance 829 | -9/Mines | Discovered new exit (range 5) 830 | -9/Mines | Met a Derelict bent on vengeance 830 | -9/Mines | Identified exit to Exiles 831 | -9/Mines | Entered Exiles 839 | -9/Exiles | Met 8R-AWN 845 | -9/Exiles | Met EX-HEX 854 | -9/Exiles | Met EX-BIN 859 | -9/Exiles | Aligned with FarCom system 859 | -9/Exiles | Given EX-Vault access code 867 | -9/Exiles | Opened EX-Vault 869 | -9/Exiles | Found 0b10 Alert Chip 876 | -9/Exiles | Warned to stay clear of 0b10 Research branches 885 | -9/Exiles | Met EX-DEC 899 | -9/Exiles | Visited The Gauntlet 940 | -9/Exiles | Discovered new exit (range 10) 942 | -9/Exiles | Identified exit to Mines 943 | -9/Exiles | Left Exiles lab with 0b10 Alert Chip 943 | -9/Exiles | Entered Mines 951 | -8/Mines | Discovered exit to Materials (range 13) 955 | -8/Mines | Entered Materials 955 | -8/Materials | Evolved 2 slots: Utility x2 1030 | -8/Materials | Garrison activated, responded to threat 1051 | -8/Materials | Discovered new exit (range 13) 1081 | -8/Materials | Met 7R-MNS 1084 | -8/Materials | Discovered new exit (range 19) 1092 | -8/Materials | Identified exit to Factory 1108 | -8/Materials | Identified exit to Storage 1109 | -8/Materials | Entered Storage 1178 | -8/Storage | Discovered exit to Factory (range 20) 1186 | -8/Storage | Entered Factory 1186 | -7/Factory | Evolved 2 slots: Power x1, Propulsion x1 1242 | -7/Factory | Discovered new exit (range 16) 1246 | -7/Factory | Identified exit to Factory 1262 | -7/Factory | Entered another Factory area 1262 | -6/Factory | Evolved 2 slots: Propulsion x1, Utility x1 1307 | -6/Factory | Discovered new exit (range 4) 1307 | -6/Factory | Identified exit to Lower Caves 1340 | -6/Factory | Entered Lower Caves 1340 | -6/Lower Caves | Accompanied by 1 ally 1406 | -6/Lower Caves | Attracted the attention of an 0b10 outpost 1415 | -6/Lower Caves | Learned Factory garrison access intel 1508 | -6/Lower Caves | Discovered new exit (range 4) 1509 | -6/Lower Caves | Identified exit to Lower Caves 1509 | -6/Lower Caves | Entered another Lower Caves area 1521 | -6/Lower Caves | Discovered new exit (range 12) 1522 | -6/Lower Caves | Lost 3 parts (1p2n) 1547 | -6/Lower Caves | Identified exit to Factory 1548 | -6/Lower Caves | Entered Factory 1548 | -5/Factory | Evolved 2 slots: Propulsion x1, Utility x1 1549 | -5/Factory | Loaded intel: 3 garrison access locations 1555 | -5/Factory | Identified exit to DSF 1555 | -5/Factory | Entered DSF 1559 | -5/DSF | Discovered new exit (range 19) 1573 | -5/DSF | Additional patrols routed to DSF 1581 | -5/DSF | Released all parts (2) 1592 | -5/DSF | Core integrity fell below 50% 1598 | -5/DSF | System corruption reached 10% 1628 | -5/DSF | Entered Garrison 1629 | -5/Garrison | Lost 7 parts (4n3w) 1634 | -5/Garrison | Core integrity fell below 20% 1655 | -5/Garrison | Destroyed by Y-64 Sentinel with Wave Gun Last Messages --------------- 01598_ C-35 Carver destroyed. 01617_ ALERT: Suspicious intruders detected, dispatching Cutter reinforcements to area. 01620_ Triggered Alarm Trap. 01620_ An alarm sounds. 01621_ 8NL1:IX1W|=CVBSWO25PO9ORN3QE8, 01622_ Knocked back. LOCATION=UNKNOWN GOAL=ESCAPE 01628_ Receiving FarCom transmissions... 01633_ Slug penetrates Wall. 01640_ Triggered Alarm Trap. 01640_ An alarm sounds. 01645_ Slug penetrates Wall. 01646_ Slammed into Y-64 Sentinel. 01646_ Destabilizing: Core damaged (-30). 01647_ Slammed into Y-64 Sentinel. 01648_ Penetrated by Slug. 01648_ Slammed into Y-64 Sentinel. 01651_ Penetrated by Slug. Map ----- +----------------------------------------------------+ | ?????????????????????????????????????????????????? | | ?????????????????????????????????????????????????? | | ?????????????????????????????????????????????????? | | ?????????????????????????????????????????????????? | | ?????????????????????????????????????????????????? | | ?????????????????????????????????????????????????? | | ?????????????????????????????????????????????????? | | ?????????????????????????????????????????????????? | | ?????????????????????????????????????????????????? | | ?????????????????????????????????????????????????? | | ?????????????????????????????????????????????????? | | ?????????????????????????????????????????????????? | | ?????????????????????????????????????????????????? | | ?????????????????????????????????????????????????? | | ?????????????????????????????????????????????????? | | ?????????????????????????????????????????????????? | | ?????????????????????????????????????????????????? | | ?????????????????????????????????????????????????? | | ?????????????????????????????????????????????????? | | ?????????????????????????????????????????????????? | | ?????????????????????????ggg?????????????????????? | | ?????????????????????????????????????????????????? | | ?????????????????????????????????????????????????? | | ?????????????###?????????????????????????????????? | | ??############ ############### ####??????????????? | | ??# @ #????????? | | ??# #????????? | | ??# Y #????????? | | ??# ########%############### ###### ?????????? | | ??# #??????#%#???????????????#?????????????????? | | ??#####??????# #?????????????????????????????????? | | ?????????????# #?????????????????????????????????? | | ?????????????# #????##???????????????????????????? | | ?????????????# #???? #???????????????????????????? | | ?????????????# #?###+###?????????????????????????? | | ?????????????# #?#!! [[#?????????????????????????? | | ?????????????# #?#!! [[#?????????????????????????? | | ?????????????# ### #?????????????????????????? | | ?????????????# Y #?????????????????????????? | | ?????????????#####Y #?????????????????????????? | | ?????????????????#!! !!#?????????????????????????? | | ?????????????????#!! !!#?????????????????????????? | | ?????????????????###+###?????????????????????????? | | ???????????????????? #???????????????????????????? | | ?????????????????????#???????????????????????????? | | ?????????????????????????????????????????????????? | | ?????????????????????????????????????????????????? | | ?????????????????????????????????????????????????? | | ?????????????????????????????????????????????????? | | ?????????????????????????????????????????????????? | +----------------------------------------------------+ Best States ------------- Heat Dissipation 40 Energy Generation 19 Energy Capacity 315 Matter Stores 300 Matter Capacity 300 Sight Range 20 Robot Scan Range 15 Terrain Scan Density 10 Jamming Range 12 Evasion (%) 64 Offensive Hacking 10 Item Schematics ----------------- None Robot Schematics ------------------ None Fabricated ------------ Nothing Repaired ---------- Nothing Studied --------- None Alien Tech Used ----------------- None Achievements -------------- Throw Away The Key Challenges ------------ None Game ------ Seed MagneticWeaponSabre Manual? 0 Play Time 00:35:24 Cumulative 26.0 hours Start 2026.01.22 @ 01:27:03 End 2026.01.22 @ 02:01:50 Sessions 1 Manual Loads 0 Difficulty Rogue Special Mode None Game No. 29 Rogue 29 Adventurer 0 Explorer 0 Win Type - Total 0 Types 0/0/0/0/0/0/0/0/0/0 Lore% 24 Gallery% 27 Achievement% 24 Wizard Run 0 Options --------- Layout 1 ASCII 0 Keyboard 1 Movement Numpad Keybinds 0 Fullscreen 1 Font 48/Smallcaps Map View 50x35 Zoom Use 0% Tactical HUD 1 Map Filters NONE Filters NONE Steam 1 RUN: bf8cd7dd-1779-401f-881c-07b37eed0111